bitfinex-derivatives/quotes_ETHF0:USTF0_20241104
["timestamp","ask_amount","ask_price","bid_price","bid_amount"]
[1730713207018,0.6954,2453.8,2453.7,5.20750199]
[1730713207321,0.6954,2453.8,2453.7,6.80615351]
[1730713207526,0.6954,2453.8,2453.7,5.20750199]
[1730713207917,0.6985,2454.1,2453.7,6.39830351]
[1730713208220,1.3752,2454.1,2454.0,0.4078]
[1730713208518,3.61552,2454.5,2454.4,0.40773]
[1730713208820,1.0191,2455.0,2454.4,2.99189328]
[1730713209016,1.08985,2454.9,2454.8,1.4691074]
[1730713209217,1.08985,2454.9,2454.7,0.40768]
[1730713209218,0.6822,2454.9,2454.7,1.4691074]
[1730713209419,3.2078,2454.8,2454.4,1.068825]
[1730713209717,4.22698,2454.8,2454.3,1.068825]
[1730713209924,0.40771,2454.6,2454.5,0.40771]
[1730713210121,1.08439,2454.7,2454.6,0.4077]
[1730713210422,1.08438,2454.7,2454.6,0.99286227]
[1730713210813,5.15798,2454.7,2454.6,0.58516227]
[1730713211015,0.40772,2454.5,2454.4,0.40772]
[1730713211214,0.6767,2454.7,2454.4,0.58471346]
[1730713211411,0.40771,2454.6,2454.5,0.40771]
[1730713211612,0.6767,2454.7,2454.4,0.40772]
[1730713211821,0.6767,2454.7,2454.1,1.67353]
[1730713211822,4.22711,2454.5,2454.1,1.068825]
[1730713212014,1.66684,2454.4,2454.0,0.40779]
[1730713212220,0.40778,2454.1,2454.0,0.40779]
[1730713212927,1.2924,2454.3,2453.8,4.25069307]
[1730713213126,1.2924,2454.3,2453.9,0.40781]
[1730713213127,0.4078,2454.0,2453.9,0.40781]
[1730713213427,0.4078,2454.1,2453.8,4.25069307]
[1730713213728,1.2924,2454.3,2454.0,0.40779]
[1730713213919,0.40778,2454.1,2454.0,0.40779]
[1730713214120,1.2924,2454.3,2454.0,0.40779]
[1730713214322,0.40778,2454.2,2454.0,0.40779]
[1730713214522,1.2924,2454.3,2454.0,0.40779]
[1730713214827,0.40777,2454.2,2453.8,3.18186807]
[1730713215029,1.2924,2454.3,2454.2,0.40777]
[1730713216736,0.6475,2454.3,2454.2,0.40777]
[1730713217024,0.40777,2454.2,2454.1,0.40777]
[1730713217228,0.6475,2454.3,2454.2,0.40777]
[1730713217524,0.66,2454.6,2454.5,0.40772]
[1730713217721,0.4077,2454.7,2454.6,0.4077]
[1730713218423,1.77867,2454.9,2454.8,0.40767]
[1730713218821,5.85227,2454.9,2454.8,0.40767]
[1730713219831,0.711,2454.9,2454.8,0.40767]
[1730713220218,0.711,2454.9,2454.8,1.10167]
[1730713221224,0.7097,2455.3,2455.1,0.4076]
[1730713221225,0.40761,2455.2,2455.1,0.4076]
[1730713221415,0.6383,2455.2,2455.1,0.4076]
[1730713221619,0.6383,2455.2,2455.1,3.58946807]
[1730713222520,1.0459,2455.2,2455.1,3.58946807]
[1730713222728,0.6383,2455.2,2454.9,3.61544]
[1730713222926,0.6383,2455.2,2454.7,3.87506807]
[1730713222927,0.6383,2455.2,2454.7,0.6932]
[1730713223126,0.40766,2454.9,2454.7,0.40768]
[1730713223323,0.6832,2454.8,2454.7,0.40768]
[1730713223529,1.09087,2454.8,2454.7,0.40768]
[1730713223727,0.6832,2454.8,2454.7,0.40768]
[1730713224525,0.6832,2454.8,2454.6,3.2078]
[1730713224831,0.6832,2454.8,2454.7,3.58954807]
[1730713225130,1.09087,2454.8,2454.7,3.58954807]
[1730713225337,0.6832,2454.8,2454.6,3.2078]
[1730713225628,0.40768,2454.7,2454.6,3.6155]
[1730713225819,0.40768,2454.7,2454.6,3.2078]
[1730713226020,0.40768,2454.7,2454.6,3.6155]
[1730713226826,0.40768,2454.7,2454.6,0.4077]
[1730713227231,0.6832,2454.8,2454.5,3.87876807]
[1730713227534,0.4077,2454.6,2454.5,0.6969]
[1730713227835,1.70238,2454.8,2454.5,0.6969]
[1730713227836,0.40769,2454.7,2454.5,0.6969]
[1730713228022,0.40769,2454.7,2454.5,3.87876807]
[1730713228228,1.09088,2454.8,2454.6,0.4077]
[1730713228538,1.09088,2454.8,2454.5,3.87876807]
[1730713228539,1.09088,2454.8,2454.7,0.40768]
[1730713228828,0.6832,2454.8,2454.5,3.87876807]
[1730713229033,0.40769,2454.7,2454.6,0.40769]
[1730713230333,1.09088,2454.8,2454.6,0.40769]
[1730713230524,3.2078,2455.0,2454.6,0.40769]
[1730713230525,0.40764,2455.0,2454.9,0.40764]
[1730713231033,4.0736,2455.0,2454.6,0.6941]
[1730713231336,0.40764,2455.0,2454.9,0.40765]
[1730713232033,0.40763,2455.1,2455.0,0.40761]
[1730713232429,4.48123,2455.1,2455.0,0.40761]
[1730713233631,0.40765,2455.0,2454.9,0.40763]
[1730713233833,1.06375,2455.0,2454.9,0.40763]
[1730713235336,0.40767,2454.9,2454.8,0.40765]
[1730713236225,1.06374,2455.0,2454.9,0.40765]
[1730713237735,5.74881,2455.0,2454.6,1.3583]
[1730713237929,0.40768,2454.7,2454.6,0.40769]
[1730713238126,0.4077,2454.6,2454.5,4.31239]
[1730713239932,0.4077,2454.6,2454.5,1.10459]
[1730713242033,0.40773,2454.4,2454.3,3.2078]
[1730713242336,0.40773,2454.4,2454.1,0.6773]
[1730713242337,0.40778,2454.2,2454.1,0.6773]
[1730713243341,0.6545,2454.3,2454.1,1.08508]
[1730713243544,0.6545,2454.3,2454.1,0.6773]
[1730713243849,0.40776,2454.3,2454.2,0.40776]
[1730713245845,0.40777,2454.2,2454.1,1.08508]
[1730713247850,0.40777,2454.2,2454.1,0.6773]
[1730713248052,0.40777,2454.2,2454.1,1.08508]
[1730713249448,0.40777,2454.2,2454.1,1.67386605]
[1730713249652,0.40777,2454.2,2454.1,1.67384605]
[1730713251441,0.40777,2454.2,2454.1,1.26608605]
[1730713251650,0.40777,2454.2,2454.1,0.58878605]
[1730713254249,4.48217,2454.2,2454.1,0.58878605]
[1730713254452,0.4078,2454.0,2453.9,3.2078]
[1730713254856,0.4078,2454.0,2453.9,0.58952432]
[1730713255156,4.483,2454.0,2453.9,0.58952432]
[1730713255345,0.40787,2453.6,2453.5,0.40788]
[1730713255548,0.40786,2453.7,2453.6,0.40784]
[1730713255747,0.40786,2453.7,2453.6,0.99728255]
[1730713256048,0.40786,2453.7,2453.6,0.40784]
[1730713256351,0.40788,2453.6,2453.5,0.40787]
[1730713256654,0.40788,2453.6,2453.5,0.9970985]
[1730713256856,0.40787,2453.7,2453.6,0.40785]
[1730713261448,0.40787,2453.7,2453.4,0.6796]
[1730713261449,0.40788,2453.6,2453.5,0.40787]
[1730713263756,0.40788,2453.6,2453.4,0.6796]
[1730713263757,1.05726,2453.7,2453.6,0.40787]
[1730713264856,0.40788,2453.6,2453.5,0.40787]
[1730713267460,0.40785,2453.8,2453.7,0.40783]
[1730713268255,0.6353,2453.9,2453.4,0.6796]
[1730713268460,0.40788,2453.6,2453.5,0.40786]
[1730713271666,0.40788,2453.5,2453.4,1.08748]
[1730713271864,1.03438,2453.5,2453.4,0.6796]
[1730713272960,0.40796,2453.1,2453.0,0.40795]
[1730713273157,0.40796,2453.1,2453.0,1.07525]
[1730713273358,0.40796,2453.1,2453.0,0.6673]
[1730713274468,0.40796,2453.1,2453.0,1.07526]
[1730713274761,0.40796,2453.1,2453.0,0.6673]
[1730713276971,0.40794,2453.2,2453.1,0.40793]
[1730713277474,1.01975,2453.4,2453.0,0.6673]
[1730713277765,0.40795,2453.2,2453.1,0.40794]
[1730713278562,0.40793,2453.3,2453.2,0.40792]
[1730713279774,0.40795,2453.1,2453.0,0.6673]
[1730713279972,0.40796,2453.1,2453.0,0.40795]
[1730713280476,1.03806,2453.1,2453.0,0.40795]
[1730713283667,1.03806,2453.1,2452.7,3.0066]
[1730713283668,3.8379,2453.1,2452.7,3.0066]
[1730713283865,4.85778,2453.1,2452.7,1.9866]
[1730713284064,4.85778,2453.1,2452.7,1.03871]
[1730713284065,0.408,2452.8,2452.7,1.03871]
[1730713284665,0.40803,2452.6,2452.5,1.75864]
[1730713284870,0.40803,2452.6,2452.5,1.06934]
[1730713285173,0.40803,2452.6,2452.5,0.40804]
[1730713285472,4.5701,2452.7,2452.4,0.636]
[1730713285773,4.5701,2452.7,2452.4,1.04405]
[1730713285774,0.40805,2452.5,2452.4,1.04405]
[1730713285973,0.40805,2452.5,2452.4,0.636]
[1730713286176,5.59015,2452.7,2452.3,0.40807]
[1730713286366,5.59015,2452.7,2452.2,0.40809]
[1730713286367,0.4081,2452.3,2452.2,0.40809]
[1730713287262,0.40808,2452.4,2452.3,0.40807]
[1730713287467,1.0201,2452.6,2452.2,0.40809]
[1730713287468,0.4081,2452.3,2452.2,0.40809]
[1730713287875,0.40808,2452.4,2452.3,0.40807]
[1730713288565,1.0201,2452.6,2452.1,1.2854]
[1730713288566,3.18186807,2452.6,2452.1,1.2854]
[1730713288766,0.648,2452.3,2452.1,1.2854]
[1730713288972,0.40807,2452.4,2452.1,1.2854]
[1730713289269,4.89435,2452.7,2452.4,0.40805]
[1730713289270,0.40806,2452.5,2452.4,0.40805]
[1730713289772,0.648,2452.6,2452.3,0.40807]
[1730713289773,0.40808,2452.4,2452.3,0.40807]
[1730713296770,3.8558,2452.6,2452.5,0.40805]
[1730713296771,4.26384,2452.6,2452.5,0.40805]
[1730713296976,1.05604,2452.6,2452.5,0.40805]
[1730713297178,0.40803,2452.7,2452.6,0.40803]
[1730713298570,1.0462,2452.8,2452.7,0.40801]
[1730713298777,0.40798,2453.0,2452.9,0.40796]
[1730713299171,0.40798,2453.0,2452.9,1.06276]
[1730713300475,1.42707866,2453.1,2453.0,0.40796]
[1730713303084,1.01911866,2453.1,2453.0,0.40796]
[1730713304077,1.01911866,2453.1,2453.0,0.99688631]
[1730713304974,1.42706866,2453.1,2453.0,0.99688631]
[1730713305174,1.42706866,2453.1,2453.0,0.40796]
[1730713305569,1.01911866,2453.1,2453.0,0.40796]
[1730713306167,1.42706866,2453.1,2453.0,0.40796]
[1730713306980,1.01911866,2453.1,2453.0,0.40796]
[1730713308178,1.42706866,2453.1,2453.0,0.40796]
[1730713309071,1.01911866,2453.1,2452.9,4.5518]
[1730713309274,1.01911866,2453.1,2452.9,4.95977]
[1730713309275,0.6415,2453.0,2452.9,4.95977]
[1730713309681,0.6415,2453.0,2452.9,1.75197]
[1730713310983,1.42707866,2453.1,2453.0,0.40796]
[1730713312281,1.01911866,2453.1,2453.0,0.40796]
[1730713312475,1.42706866,2453.1,2453.0,0.40796]
[1730713312881,1.01911866,2453.1,2453.0,0.40796]
[1730713315381,1.01911866,2453.1,2453.0,0.99774777]
[1730713315576,1.01911866,2453.1,2453.0,5.07454777]
[1730713315990,1.01911866,2453.1,2453.0,8.28234777]
[1730713316287,1.01911866,2453.1,2453.0,9.22605958]
[1730713320091,1.01911866,2453.1,2453.0,6.01825958]
[1730713320980,1.01911866,2453.1,2453.0,4.48476]
[1730713321181,1.01911866,2453.1,2453.0,0.9978903]
[1730713321385,1.01911866,2453.1,2453.0,1.94177879]
[1730713321586,1.42706866,2453.1,2453.0,0.9978903]
[1730713321883,1.42706866,2453.1,2453.0,0.5899303]
[1730713322084,0.40796,2453.0,2452.9,1.75197]
[1730713322290,1.05786,2453.0,2452.9,1.65274939]
[1730713322887,0.6499,2453.0,2452.9,1.65274939]
[1730713324079,0.6499,2453.0,2452.9,1.65350392]
[1730713324284,1.01911866,2453.1,2452.9,1.24553392]
[1730713324481,2.03823732,2453.1,2453.0,0.99871297]
[1730713327194,2.44618732,2453.1,2453.0,0.40796]
[1730713327392,2.44618732,2453.1,2453.0,0.99873905]
[1730713327697,2.03823732,2453.1,2453.0,0.99873905]
[1730713328583,2.44618732,2453.1,2453.0,0.99873905]
[1730713328783,2.03823732,2453.1,2453.0,0.99873905]
[1730713329194,2.03823732,2453.1,2453.0,5.07553905]
[1730713329389,2.03823732,2453.1,2453.0,9.22850282]
[1730713329788,2.03823732,2453.1,2453.0,10.29732782]
[1730713329789,1.77401892,2453.1,2453.0,10.29732782]
[1730713331088,1.77401892,2453.1,2453.0,11.47826727]
[1730713331287,1.77401892,2453.1,2453.0,10.29701411]
[1730713332295,1.77401892,2453.1,2453.0,9.22818911]
[1730713332497,1.77401892,2453.1,2453.0,10.29701411]
[1730713333186,1.16191489,2453.1,2453.0,10.29701411]
[1730713333386,1.16191489,2453.1,2453.0,9.22818911]
[1730713334592,1.16191489,2453.1,2453.0,7.69256]
[1730713334794,1.16191489,2453.1,2453.0,5.15152093]
[1730713334993,1.16191489,2453.1,2453.0,3.61576]
[1730713335297,1.16191489,2453.1,2453.0,5.15155551]
[1730713335298,1.56986489,2453.1,2453.0,5.15155551]
[1730713335597,1.16191489,2453.1,2453.0,0.99865058]
[1730713336900,1.16191489,2453.1,2453.0,1.94807902]
[1730713338098,1.56986489,2453.1,2453.0,0.40796]
[1730713338300,1.56986489,2453.1,2453.0,1.94875141]
[1730713338891,0.83908246,2453.1,2453.0,1.94875141]
[1730713339701,1.94253246,2453.1,2453.0,1.54079141]
[1730713339896,1.94253246,2453.1,2453.0,0.59261208]
[1730713340698,6.01933246,2453.1,2453.0,0.59261208]
[1730713340893,9.20120053,2453.1,2453.0,0.59261208]
[1730713341094,0.40798,2452.9,2452.8,3.2078]
[1730713342804,0.40798,2452.9,2452.8,3.6158]
[1730713343104,0.40798,2452.9,2452.8,4.55824095]
[1730713344006,0.40798,2452.9,2452.8,4.15024095]
[1730713344194,0.40798,2452.9,2452.8,4.55824095]
[1730713345308,0.40798,2452.9,2452.8,3.6158]
[1730713345501,0.40798,2452.9,2452.8,4.55833662]
[1730713345700,0.40798,2452.9,2452.8,0.408]
[1730713345893,0.40798,2452.9,2452.8,1.35053631]
[1730713346415,0.40798,2452.9,2452.8,0.94253631]
[1730713346812,0.40798,2452.9,2452.8,1.35053631]
[1730713347906,0.6969,2453.0,2452.9,0.40798]
[1730713348118,0.6969,2453.0,2452.9,1.35051631]
[1730713348509,1.94254246,2453.1,2453.0,0.40796]
[1730713348809,1.53458246,2453.1,2453.0,0.40796]
[1730713349004,5.61138246,2453.1,2453.0,0.40796]
[1730713349200,0.83908246,2453.1,2453.0,0.40796]
[1730713349601,0.83908246,2453.1,2453.0,1.35040485]
[1730713349817,0.83908246,2453.1,2453.0,3.59723182]
[1730713350112,0.83908246,2453.1,2453.0,5.05195687]
[1730713350313,0.83908246,2453.1,2453.0,5.58178339]
[1730713351414,0.83908246,2453.1,2453.0,5.05201619]
[1730713352006,0.83908246,2453.1,2453.0,5.58178339]
[1730713352514,0.83908246,2453.1,2453.0,5.59949739]
[1730713353113,0.83908246,2453.1,2453.0,6.18848192]
[1730713355915,0.83908246,2453.1,2453.0,6.19434127]
[1730713356213,0.83908246,2453.1,2453.0,1.88048128]
[1730713356420,0.83908246,2453.1,2453.0,4.59563429]
[1730713356617,0.83908246,2453.1,2453.0,6.72426771]
[1730713357007,0.83908246,2453.1,2453.0,4.5955641]
[1730713359424,0.83908246,2453.1,2453.0,4.59541409]
[1730713360611,0.83908246,2453.1,2453.0,11.85408216]
[1730713360814,0.83908246,2453.1,2453.0,17.56336505]
[1730713361417,0.83908246,2453.1,2453.0,14.79858715]
[1730713361608,1.3596,2453.7,2453.6,0.40787]
[1730713361812,1.3596,2453.7,2453.6,0.99808804]
[1730713362211,1.3596,2453.7,2453.6,1.94416318]
[1730713362419,0.6613,2453.7,2453.6,1.94416318]
[1730713362615,4.30791,2454.0,2453.9,0.40782]
[1730713362820,4.5614,2454.0,2453.6,1.06850028]
[1730713363023,4.5614,2454.0,2453.7,1.94499897]
[1730713363024,0.40784,2453.8,2453.7,1.94499897]
[1730713364218,0.40784,2453.8,2453.7,0.99905507]
[1730713365021,4.5614,2454.0,2453.7,0.59121507]
[1730713365225,0.40782,2453.9,2453.8,0.99903507]
[1730713365817,4.9692,2454.0,2453.9,0.40782]
[1730713367324,4.5614,2454.0,2453.9,0.40782]
[1730713367529,4.9692,2454.0,2453.9,0.40782]
[1730713367725,4.5614,2454.0,2453.9,0.40782]
[1730713367932,4.5614,2454.0,2453.9,0.99855641]
[1730713368425,0.6613,2454.0,2453.9,0.99845158]
[1730713368629,1.0691,2454.0,2453.9,0.99845158]
[1730713369123,1.0691,2454.0,2453.9,0.40782]
[1730713369631,0.6613,2454.0,2453.9,0.40782]
[1730713370027,0.40776,2454.3,2453.9,0.40782]
[1730713370235,0.40778,2454.2,2454.1,0.40775]
[1730713370627,4.48218,2454.2,2454.1,0.40775]
[1730713370823,0.6492,2454.3,2454.0,1.3925]
[1730713371038,0.6492,2454.3,2454.2,0.40777]
[1730713371226,1.05695,2454.3,2454.2,0.40777]
[1730713371633,2.52577362,2454.3,2454.2,0.40777]
[1730713372635,7.91107362,2454.3,2454.2,0.40777]
[1730713373338,6.44225,2454.3,2454.2,0.40777]
[1730713376524,0.40778,2454.2,2453.8,1.01958]
[1730713376727,0.40781,2454.0,2453.9,0.40779]
[1730713383332,1.01943,2454.2,2453.7,1.9752]
[1730713383640,1.03913,2453.9,2453.8,0.40782]
[1730713385248,0.40785,2453.8,2453.7,0.40784]
[1730713385441,0.40785,2453.7,2453.6,3.61565]
[1730713386638,0.40785,2453.7,2453.6,0.40785]
[1730713389543,4.48305,2453.7,2453.6,0.40785]
[1730713390245,1.03912,2453.9,2453.8,0.40783]
[1730713390737,5.54864954,2454.2,2454.0,0.40778]
[1730713390738,0.40779,2454.1,2454.0,0.40778]
[1730713391544,1.04227,2454.2,2454.1,0.40778]
[1730713395849,0.40777,2454.2,2454.1,0.40778]
[1730713396533,1.46882787,2454.3,2454.2,0.40777]
[1730713396534,1.87658787,2454.3,2454.2,0.40777]
[1730713396736,0.40776,2454.3,2454.2,0.40777]
[1730713397245,0.40776,2454.3,2454.2,1.0011303]
[1730713398446,0.6245,2454.4,2454.2,0.5933603]
[1730713398651,3.61552,2454.5,2454.4,0.40773]
[1730713399844,5.08434787,2454.5,2454.4,0.40773]
[1730713401852,5.08434787,2454.5,2454.3,2.30393]
[1730713401853,0.40773,2454.4,2454.3,2.30393]
[1730713402353,0.40773,2454.4,2454.3,2.8975605]
[1730713403247,0.40773,2454.4,2454.3,2.30393]
[1730713403448,0.40773,2454.4,2454.3,2.89764092]
[1730713404444,3.61552,2454.5,2454.4,0.40773]
[1730713404648,3.61552,2454.5,2454.4,1.00144092]
[1730713406152,3.61552,2454.5,2454.4,1.95162913]
[1730713406356,3.61552,2454.5,2454.4,0.40773]
[1730713406650,0.40773,2454.4,2454.3,2.30395]
[1730713406853,1.04023,2454.4,2454.3,2.30395]
[1730713407159,5.11463,2454.4,2454.3,2.30395]
[1730713407650,1.04023,2454.4,2454.3,2.30395]
[1730713408353,3.61553,2454.5,2454.3,1.8962]
[1730713408551,3.61553,2454.5,2454.4,0.40773]
[1730713409852,3.2078,2454.9,2454.8,0.40767]
[1730713410043,1.46882787,2454.9,2454.4,4.67662787]
[1730713410242,0.40769,2454.7,2454.6,0.40768]
[1730713411258,0.40771,2454.6,2454.5,0.4077]
[1730713411755,4.48211,2454.6,2454.5,0.4077]
[1730713412754,0.40773,2454.5,2454.4,0.40772]
[1730713413553,1.46882787,2454.6,2454.3,1.8962]
[1730713413861,0.40773,2454.5,2454.4,0.40772]
[1730713414255,3.43952787,2454.8,2454.3,4.38438787]
[1730713414462,3.43952787,2454.8,2454.4,1.54343567]
[1730713414665,0.40772,2454.6,2454.5,1.0013391]
[1730713414854,7.68992,2454.6,2454.5,0.5936291]
[1730713415056,7.68992,2454.6,2454.0,5.29576028]
[1730713415057,9.77029787,2454.6,2454.0,5.29576028]
[1730713415249,0.40776,2454.3,2454.2,0.40774]
[1730713415449,0.40776,2454.3,2454.2,1.9512565]
[1730713415764,1.46882787,2454.4,2454.3,0.40775]
[1730713415765,0.40774,2454.4,2454.3,0.40775]
[1730713416058,0.40774,2454.4,2454.3,1.00141019]
[1730713416859,4.67662787,2454.6,2454.3,1.00141019]
[1730713417059,4.67662787,2454.6,2454.4,0.59366019]
[1730713417060,3.2078,2454.6,2454.4,0.59366019]
[1730713417362,3.2078,2454.6,2454.3,1.87657787]
[1730713417363,3.2078,2454.6,2454.5,2.2859461]
[1730713417665,7.6899,2454.6,2454.5,2.2859461]
[1730713417851,3.6155,2454.6,2454.5,2.2859461]
[1730713418052,3.2078,2454.6,2454.5,2.2859461]
[1730713418554,4.67662787,2454.9,2454.6,0.4077]
[1730713418758,5.16028,2454.8,2454.7,0.40767]
[1730713419959,1.08668,2454.8,2454.7,0.40767]
[1730713424554,0.40768,2454.8,2454.7,0.40767]
[1730713428263,6.14479,2455.0,2454.6,0.6304]
[1730713428455,0.40768,2454.7,2454.6,1.03809]
[1730713433163,0.40768,2454.7,2454.6,1.63234734]
[1730713434171,0.40768,2454.7,2454.6,1.63234436]
[1730713437463,0.40768,2454.7,2454.6,2.58400571]
[1730713437665,0.40768,2454.7,2454.6,1.03809]
[1730713438172,0.40768,2454.7,2454.6,2.58453002]
[1730713439176,1.4260929,2454.8,2454.7,0.40768]
[1730713439369,1.4260929,2454.8,2454.7,1.00246462]
[1730713440169,1.4260929,2454.8,2454.7,1.95428211]
[1730713440772,1.4260929,2454.8,2454.7,0.40768]
[1730713440974,1.4260929,2454.8,2454.7,1.9534197]
[1730713441172,1.0184129,2454.8,2454.7,1.9534197]
[1730713442176,1.4260829,2454.8,2454.7,1.9534197]
[1730713442376,1.0184129,2454.8,2454.7,1.9534197]
[1730713443583,1.0184129,2454.8,2454.7,1.00219527]
[1730713443782,1.4260829,2454.8,2454.7,1.00219527]
[1730713444577,1.4260829,2454.8,2454.7,0.59451527]
[1730713444778,0.40768,2454.7,2454.6,1.06850028]
[1730713445076,3.8453,2454.7,2454.5,2.35310028]
[1730713445285,3.8453,2454.7,2454.5,1.69231]
[1730713445286,0.4077,2454.6,2454.5,1.69231]
[1730713445579,0.4077,2454.6,2454.5,2.28848335]
[1730713446075,3.8453,2454.7,2454.4,1.06850028]
[1730713446280,3.8453,2454.7,2454.3,4.13689078]
[1730713446281,1.46850035,2454.5,2454.3,1.06850028]
[1730713446482,0.40773,2454.4,2454.3,0.40775]
[1730713446672,0.40773,2454.4,2454.3,1.00400852]
[1730713446875,0.40773,2454.4,2454.3,0.40775]
[1730713447075,0.40773,2454.4,2454.3,1.00400266]
[1730713447678,1.0184129,2454.8,2454.7,0.40768]
[1730713447881,1.0184129,2454.8,2454.7,2.47239208]
[1730713448078,1.0184129,2454.8,2454.7,6.51584698]
[1730713448778,1.0184129,2454.8,2454.7,5.98187543]
[1730713449569,1.0184129,2454.8,2454.7,5.98186903]
[1730713450376,1.0184129,2454.8,2454.7,3.02788525]
[1730713451475,1.0184129,2454.8,2454.7,4.51591181]
[1730713451673,1.0184129,2454.8,2454.7,5.69208241]
[1730713451984,1.0184129,2454.8,2454.7,7.71399845]
[1730713452480,1.0184129,2454.8,2454.7,7.71419725]
[1730713452889,1.0184129,2454.8,2454.7,8.35036832]
[1730713453278,1.0184129,2454.8,2454.7,7.71419725]
[1730713454189,1.0184129,2454.8,2454.7,11.78779725]
[1730713454381,1.0184129,2454.8,2454.7,10.82101909]
[1730713454587,0.40670541,2454.8,2454.7,12.95801966]
[1730713456089,0.40670541,2454.8,2454.7,12.32184859]
[1730713456292,0.40670541,2454.8,2454.7,13.78706951]
[1730713456684,0.40670541,2454.8,2454.7,14.42324058]
[1730713457187,0.40670541,2454.8,2454.7,9.57143958]
[1730713457383,0.40670541,2454.8,2454.7,11.76778108]
[1730713457593,0.40670541,2454.8,2454.7,9.03644201]
[1730713457892,0.40670541,2454.8,2454.7,12.30263548]
[1730713458987,0.40670541,2454.8,2454.7,6.22524052]
[1730713459300,0.81437541,2454.8,2454.7,2.61157589]
[1730713459593,0.81437541,2454.8,2454.7,1.95139942]
[1730713459793,0.81437541,2454.8,2454.7,1.54371942]
[1730713460190,5.04058831,2454.8,2454.7,1.54371942]
[1730713460493,10.58268866,2454.8,2454.7,0.59373824]
[1730713460696,10.17501866,2454.8,2454.4,0.40773]
[1730713460989,0.40772,2454.5,2454.2,3.17595682]
[1730713461193,0.40772,2454.5,2454.4,0.40772]
[1730713461495,0.40772,2454.5,2454.4,1.54380535]
[1730713462190,3.61552,2454.5,2454.4,1.54380535]
[1730713462485,7.68992,2454.5,2454.4,0.59377129]
[1730713462693,0.40777,2454.2,2454.1,0.40778]
[1730713462881,0.40777,2454.2,2454.1,1.95182121]
[1730713464194,0.40777,2454.2,2454.1,0.40778]
[1730713464393,0.40777,2454.2,2454.1,1.95162016]
[1730713464995,0.40776,2454.3,2454.2,0.40775]
[1730713465189,0.40776,2454.3,2454.2,1.95159016]
[1730713465389,0.40776,2454.3,2454.2,1.54384016]
[1730713465590,0.40775,2454.3,2454.2,1.54341957]
[1730713466191,0.40775,2454.3,2454.2,0.59362291]
[1730713466596,0.40775,2454.3,2454.2,0.59357587]
[1730713467285,0.40775,2454.3,2454.2,1.00134587]
[1730713467799,0.40775,2454.3,2454.2,1.00126519]
[1730713467994,0.40775,2454.3,2454.2,0.59349519]
[1730713468594,0.40775,2454.3,2454.2,1.00126519]
[1730713469902,1.42637038,2454.3,2454.2,1.00126519]
[1730713470102,1.42637038,2454.3,2454.2,0.59349519]
[1730713470306,1.42637038,2454.3,2454.2,1.00126519]
[1730713471307,1.42637038,2454.3,2454.2,1.00108257]
[1730713472797,1.42637038,2454.3,2454.2,0.40777]
[1730713474308,1.01862038,2454.3,2454.2,0.40777]
[1730713476107,1.01862038,2454.3,2454.2,0.99398398]
[1730713476612,1.01862038,2454.3,2454.2,5.06838398]
[1730713476797,1.01862038,2454.3,2454.2,6.00625324]
[1730713477002,1.01862038,2454.3,2454.2,6.62425324]
[1730713477211,1.01862038,2454.3,2454.2,13.01419693]
[1730713477415,1.01862038,2454.3,2454.2,14.0820534]
[1730713477807,1.01862038,2454.3,2454.2,15.56456093]
[1730713478110,1.01862038,2454.3,2454.2,15.1604613]
[1730713478312,1.01862038,2454.3,2454.2,16.3326562]
[1730713478499,1.01862038,2454.3,2454.2,18.4425533]
[1730713478700,1.01862038,2454.3,2454.2,15.66865244]
[1730713479207,1.01862038,2454.3,2454.2,17.26856163]
[1730713479410,1.01862038,2454.3,2454.2,15.66860326]
[1730713483203,1.01862038,2454.3,2454.2,17.80560383]
[1730713483409,1.83278831,2454.8,2454.7,0.40768]
[1730713483610,1.83278831,2454.8,2454.7,0.99377612]
[1730713484013,1.83278831,2454.8,2454.7,0.40768]
[1730713484609,1.42511831,2454.8,2454.7,0.99375502]
[1730713484819,1.42511831,2454.8,2454.7,1.64378]
[1730713485112,1.42511831,2454.8,2454.7,2.22985671]
[1730713487715,1.42511831,2454.8,2454.7,1.64378]
[1730713493122,1.42511831,2454.8,2454.7,3.11211604]
[1730713493422,1.42511831,2454.8,2454.7,7.75537455]
[1730713494423,1.42511831,2454.8,2454.7,9.73328909]
[1730713496118,1.42511831,2454.8,2454.7,12.94108909]
[1730713498125,1.42511831,2454.8,2454.7,9.73328909]
[1730713498520,1.42511831,2454.8,2454.7,12.94108909]
[1730713501526,0.6509,2455.3,2455.2,0.4076]
[1730713501726,0.6509,2455.3,2455.2,1.87593604]
[1730713503525,0.6226,2455.4,2455.2,1.46833604]
[1730713503722,0.6226,2455.4,2455.3,4.18458078]
[1730713503920,0.6226,2455.4,2455.3,3.61538]
[1730713504124,0.6226,2455.4,2455.3,4.184582]
[1730713504526,0.6226,2455.4,2455.3,4.831382]
[1730713505831,0.6226,2455.4,2455.3,4.26218]
[1730713507134,0.6226,2455.4,2455.3,1.05438]
[1730713507435,0.6226,2455.4,2455.3,3.2078]
[1730713507631,0.6226,2455.4,2455.1,1.47337524]
[1730713507632,0.40759,2455.3,2455.1,1.47337524]
[1730713507827,0.6151,2455.2,2454.9,1.46833604]
[1730713508027,1.233,2455.2,2454.9,1.46833604]
[1730713508531,0.40762,2455.1,2455.0,0.40762]
[1730713508735,1.233,2455.2,2454.9,1.46833604]
[1730713508933,1.233,2455.2,2455.0,0.40762]
[1730713509135,1.64061,2455.2,2454.9,1.46833604]
[1730713509335,1.64061,2455.2,2455.1,0.40762]
[1730713509531,1.64061,2455.2,2454.9,0.40765]
[1730713509741,1.64061,2455.2,2455.1,0.40762]
[1730713510042,1.233,2455.2,2454.7,8.06939463]
[1730713510236,0.40762,2455.1,2454.9,0.40764]
[1730713510542,0.6255,2455.0,2454.9,0.40764]
[1730713511235,0.6255,2455.0,2454.9,0.40765]
[1730713511433,0.6255,2455.0,2454.7,7.05018463]
[1730713511632,0.40766,2454.9,2454.7,7.45785463]
[1730713511943,0.40765,2454.9,2454.7,3.2078]
[1730713512145,1.66687,2454.8,2454.7,3.2078]